[Event "Titled Tuesday Blitz June 28 Late 2022"]
[White "Perera Alfonso, Rene Humberto"]
[Black "Kohler, Aran"]
[WhiteFideId "3514722"]
[BlackFideId "1002856"]
[WhiteElo "2313"]
[BlackElo "2274"]
[Result "1-0"]
[Round "02"]
[TimeControl "180+1"]
[Date "2022.06.29"]
[WhiteClock "0:01:47"]
[BlackClock "0:00:23"]

1. e4 {[%clk 0:02:59]}  c5 {[%clk 0:02:59]} 2. Nf3 {[%clk 0:02:59]}  d6 {[%clk 0:02:59]} 3. d4 {[%clk 0:03:00]}  cxd4 {[%clk 0:02:59]} 4. Nxd4 {[%clk 0:03:01]}  Nf6 {[%clk 0:02:59]} 5. Nc3 {[%clk 0:03:01]}  a6 {[%clk 0:03:00]} 6. Be3 {[%clk 0:03:01]}  e5 {[%clk 0:02:58]} 7. Nb3 {[%clk 0:03:01]}  Be6 {[%clk 0:02:59]} 8. f3 {[%clk 0:03:00]}  Be7 {[%clk 0:02:59]} 9. Qd2 {[%clk 0:03:01]}  Nbd7 {[%clk 0:02:59]} 10. O-O-O {[%clk 0:03:01]}  Rc8 {[%clk 0:02:59]} 11. g4 {[%clk 0:03:01]}  Nb6 {[%clk 0:02:54]} 12. Bxb6 {[%clk 0:02:58]}  Qxb6 {[%clk 0:02:53]} 13. g5 {[%clk 0:02:59]}  Nd7 {[%clk 0:02:51]} 14. h4 {[%clk 0:02:59]}  O-O {[%clk 0:02:33]} 15. Kb1 {[%clk 0:02:57]}  Qd8 {[%clk 0:02:27]} 16. Rg1 {[%clk 0:02:56]}  b5 {[%clk 0:02:20]} 17. h5 {[%clk 0:02:55]}  Nb6 {[%clk 0:02:18]} 18. g6 {[%clk 0:02:55]}  fxg6 {[%clk 0:02:17]} 19. hxg6 {[%clk 0:02:56]}  h6 {[%clk 0:02:18]} 20. Nd5 {[%clk 0:02:54]}  Bxd5 {[%clk 0:02:16]} 21. exd5 {[%clk 0:02:55]}  Rxf3 {[%clk 0:02:14]} 22. Be2 {[%clk 0:02:48]}  Nc4 {[%clk 0:01:58]} 23. Qb4 {[%clk 0:02:30]}  Rf2 {[%clk 0:01:55]} 24. Bg4 {[%clk 0:02:29]}  Rc7 {[%clk 0:01:47]} 25. Be6+ {[%clk 0:02:28]}  Kh8 {[%clk 0:01:46]} 26. Rgf1 {[%clk 0:02:28]}  Ne3 {[%clk 0:01:28]} 27. Rxf2 {[%clk 0:02:26]}  Nxd1 {[%clk 0:01:28]} 28. Rf7 {[%clk 0:02:22]}  Bg5 {[%clk 0:01:18]} 29. Na5 {[%clk 0:02:10]}  Rxf7 {[%clk 0:01:13]} 30. gxf7 {[%clk 0:02:11]}  Ne3 {[%clk 0:01:11]} 31. Nc6 {[%clk 0:02:10]}  Qf8 {[%clk 0:01:11]} 32. Qa5 {[%clk 0:02:02]}  Nc4 {[%clk 0:01:09]} 33. Qxa6 {[%clk 0:02:00]}  Nd2+ {[%clk 0:01:07]} 34. Ka1 {[%clk 0:01:59]}  g6 {[%clk 0:01:03]} 35. Qxb5 {[%clk 0:01:54]}  Kg7 {[%clk 0:01:03]} 36. a4 {[%clk 0:01:53]}  h5 {[%clk 0:01:03]} 37. a5 {[%clk 0:01:53]}  Ne4 {[%clk 0:00:59]} 38. a6 {[%clk 0:01:50]}  Nc5 {[%clk 0:00:59]} 39. a7 {[%clk 0:01:49]}  e4 {[%clk 0:00:30]} 40. Qb8 {[%clk 0:01:47]}  e3 {[%clk 0:00:23]} 41. Qxf8+ {[%clk 0:01:47]} 1-0


[Site "https://www.chess.com"]

[Event "Titled Tuesday Blitz June 28 Late 2022"]
[White "Prohorov, Olexandr"]
[Black "Bashirli, Nail"]
[WhiteFideId "14105578"]
[BlackFideId "13406809"]
[WhiteElo "1993"]
[BlackElo "2333"]
[Result "0-1"]
[Round "02"]
[TimeControl "180+1"]
[Date "2022.06.29"]
[WhiteClock "0:01:54"]
[BlackClock "0:01:41"]

1. Nf3 {[%clk 0:03:00]}  d5 {[%clk 0:02:55]} 2. d4 {[%clk 0:02:59]}  Nf6 {[%clk 0:02:54]} 3. c4 {[%clk 0:02:59]}  e6 {[%clk 0:02:53]} 4. Nc3 {[%clk 0:02:59]}  Bb4 {[%clk 0:02:46]} 5. Qa4+ {[%clk 0:02:59]}  Nc6 {[%clk 0:02:45]} 6. Ne5 {[%clk 0:02:58]}  a5 {[%clk 0:02:33]} 7. a3 {[%clk 0:02:52]}  Bxc3+ {[%clk 0:02:30]} 8. bxc3 {[%clk 0:02:53]}  O-O {[%clk 0:02:30]} 9. Nxc6 {[%clk 0:02:49]}  bxc6 {[%clk 0:02:31]} 10. Qxc6 {[%clk 0:02:45]}  Bd7 {[%clk 0:02:29]} 11. Qb7 {[%clk 0:02:39]}  Rb8 {[%clk 0:02:26]} 12. Qa6 {[%clk 0:02:37]}  Ra8 {[%clk 0:02:21]} 13. Qb7 {[%clk 0:02:37]}  Rb8 {[%clk 0:01:59]} 14. Qa6 {[%clk 0:02:35]}  Ne4 {[%clk 0:01:57]} 15. cxd5 {[%clk 0:02:30]}  Bb5 {[%clk 0:01:52]} 16. Qxa5 {[%clk 0:02:28]}  exd5 {[%clk 0:01:49]} 17. Bf4 {[%clk 0:02:18]}  Qf6 {[%clk 0:01:47]} 18. e3 {[%clk 0:02:15]}  Bxf1 {[%clk 0:01:46]} 19. Rxf1 {[%clk 0:02:14]}  Rb2 {[%clk 0:01:45]} 20. Qxd5 {[%clk 0:02:09]}  Qa6 {[%clk 0:01:42]} 21. c4 {[%clk 0:02:06]}  c6 {[%clk 0:01:40]} 22. Qxe4 {[%clk 0:01:56]}  Qa5+ {[%clk 0:01:40]} 23. Kd1 {[%clk 0:01:54]}  Qd2# {[%clk 0:01:41]} 0-1


[Site "https://www.chess.com"]

[Event "Titled Tuesday Blitz June 28 Late 2022"]
[White "Przybylski, Wojciech"]
[Black "Howell, David W L"]
[WhiteFideId "1117599"]
[BlackFideId "410608"]
[WhiteElo "2133"]
[BlackElo "2559"]
[Result "0-1"]
[Round "02"]
[TimeControl "180+1"]
[Date "2022.06.29"]
[WhiteClock "0:00:09"]
[BlackClock "0:00:28"]

1. d4 {[%clk 0:02:56]}  a6 {[%clk 0:03:00]} 2. e4 {[%clk 0:02:55]}  h6 {[%clk 0:02:59]} 3. Bd3 {[%clk 0:02:54]}  c5 {[%clk 0:02:46]} 4. Ne2 {[%clk 0:02:51]}  cxd4 {[%clk 0:02:42]} 5. Nxd4 {[%clk 0:02:51]}  e5 {[%clk 0:02:43]} 6. Nf3 {[%clk 0:02:47]}  Nf6 {[%clk 0:02:37]} 7. O-O {[%clk 0:02:44]}  Nc6 {[%clk 0:02:35]} 8. Nc3 {[%clk 0:02:40]}  Bc5 {[%clk 0:02:34]} 9. h3 {[%clk 0:02:37]}  d6 {[%clk 0:02:34]} 10. Re1 {[%clk 0:02:36]}  g5 {[%clk 0:02:33]} 11. Nh2 {[%clk 0:02:31]}  g4 {[%clk 0:02:27]} 12. hxg4 {[%clk 0:02:22]}  h5 {[%clk 0:02:24]} 13. g5 {[%clk 0:02:07]}  Ng4 {[%clk 0:02:21]} 14. Rf1 {[%clk 0:01:57]}  Be6 {[%clk 0:02:09]} 15. Nd5 {[%clk 0:01:56]}  Rg8 {[%clk 0:01:35]} 16. c3 {[%clk 0:01:35]}  Rxg5 {[%clk 0:01:26]} 17. Bxg5 {[%clk 0:01:34]}  Qxg5 {[%clk 0:01:19]} 18. b4 {[%clk 0:01:03]}  Ba7 {[%clk 0:01:09]} 19. Nc7+ {[%clk 0:00:36]}  Kd7 {[%clk 0:01:09]} 20. Nxa8 {[%clk 0:00:36]}  Qh4 {[%clk 0:00:57]} 21. Nxg4 {[%clk 0:00:35]}  hxg4 {[%clk 0:00:51]} 22. b5 {[%clk 0:00:29]}  g3 {[%clk 0:00:48]} 23. bxc6+ {[%clk 0:00:27]}  Kc8 {[%clk 0:00:46]} 24. cxb7+ {[%clk 0:00:21]}  Kb8 {[%clk 0:00:46]} 25. Re1 {[%clk 0:00:16]}  Bg4 {[%clk 0:00:28]} 26. Qxg4 {[%clk 0:00:10]}  gxf2+ {[%clk 0:00:27]} 27. Kf1 {[%clk 0:00:10]}  fxe1=Q+ {[%clk 0:00:27]} 28. Rxe1 {[%clk 0:00:09]}  Qf2# {[%clk 0:00:28]} 0-1


[Site "https://www.chess.com"]

[Event "Titled Tuesday Blitz June 28 Late 2022"]
[White "Pulpan, Jakub"]
[Black "Maghsoodloo, Parham"]
[WhiteFideId "302759"]
[BlackFideId "12539929"]
[WhiteElo "2495"]
[BlackElo "2607"]
[Result "0-1"]
[Round "02"]
[TimeControl "180+1"]
[Date "2022.06.28"]
[WhiteClock "0:00:08"]
[BlackClock "0:01:36"]

1. Nf3 {[%clk 0:03:00]}  d5 {[%clk 0:02:59]} 2. b3 {[%clk 0:02:59]}  Nd7 {[%clk 0:02:59]} 3. Bb2 {[%clk 0:02:59]}  c6 {[%clk 0:02:55]} 4. c4 {[%clk 0:02:53]}  e6 {[%clk 0:02:54]} 5. g3 {[%clk 0:02:52]}  Ngf6 {[%clk 0:02:54]} 6. Bg2 {[%clk 0:02:53]}  Bd6 {[%clk 0:02:54]} 7. O-O {[%clk 0:02:53]}  O-O {[%clk 0:02:55]} 8. d3 {[%clk 0:02:50]}  a5 {[%clk 0:02:54]} 9. a3 {[%clk 0:02:50]}  Qe7 {[%clk 0:02:53]} 10. Nbd2 {[%clk 0:02:49]}  Rd8 {[%clk 0:02:48]} 11. Qc2 {[%clk 0:02:47]}  e5 {[%clk 0:02:48]} 12. Rfe1 {[%clk 0:02:32]}  Nf8 {[%clk 0:02:43]} 13. e4 {[%clk 0:02:25]}  dxe4 {[%clk 0:02:42]} 14. Nxe4 {[%clk 0:02:20]}  Nxe4 {[%clk 0:02:42]} 15. Rxe4 {[%clk 0:02:21]}  Bf5 {[%clk 0:02:42]} 16. Re2 {[%clk 0:02:19]}  Ng6 {[%clk 0:02:42]} 17. Qc3 {[%clk 0:01:37]}  c5 {[%clk 0:02:35]} 18. Nd2 {[%clk 0:01:33]}  f6 {[%clk 0:02:29]} 19. Rae1 {[%clk 0:01:26]}  Qc7 {[%clk 0:02:26]} 20. Ne4 {[%clk 0:01:11]}  Be7 {[%clk 0:02:24]} 21. Qc2 {[%clk 0:01:11]}  Rd7 {[%clk 0:02:22]} 22. Re3 {[%clk 0:01:08]}  Rad8 {[%clk 0:02:22]} 23. Nc3 {[%clk 0:01:01]}  Rxd3 {[%clk 0:01:43]} 24. Rxd3 {[%clk 0:00:53]}  Rxd3 {[%clk 0:01:42]} 25. Nd5 {[%clk 0:00:35]}  Qd7 {[%clk 0:01:42]} 26. g4 {[%clk 0:00:20]}  Re3 {[%clk 0:01:39]} 27. Qd2 {[%clk 0:00:07]}  Rxe1+ {[%clk 0:01:38]} 28. Qxe1 {[%clk 0:00:08]}  Bxg4 {[%clk 0:01:39]} 29. Qd2 {[%clk 0:00:09]}  Bd8 {[%clk 0:01:37]} 30. f3 {[%clk 0:00:07]}  Be6 {[%clk 0:01:37]} 31. f4 {[%clk 0:00:08]}  Nxf4 {[%clk 0:01:36]} 32. Qf2 {[%clk 0:00:08]} 0-1


[Site "https://www.chess.com"]

[Event "Titled Tuesday Blitz June 28 Late 2022"]
[White "Rastbod, Ali"]
[Black "Garagulya, Konstantin"]
[WhiteFideId "12567477"]
[BlackFideId "4128931"]
[WhiteElo "2135"]
[BlackElo "2329"]
[Result "0-1"]
[Round "02"]
[TimeControl "180+1"]
[Date "2022.06.29"]
[WhiteClock "0:00:02"]
[BlackClock "0:00:08"]

1. e4 {[%clk 0:03:00]}  c5 {[%clk 0:02:53]} 2. Nc3 {[%clk 0:03:00]}  a6 {[%clk 0:02:53]} 3. a4 {[%clk 0:02:57]}  Nc6 {[%clk 0:02:51]} 4. g3 {[%clk 0:02:56]}  g6 {[%clk 0:02:52]} 5. Bg2 {[%clk 0:02:56]}  Bg7 {[%clk 0:02:52]} 6. d3 {[%clk 0:02:57]}  e6 {[%clk 0:02:52]} 7. Be3 {[%clk 0:02:58]}  Nd4 {[%clk 0:02:51]} 8. Qd2 {[%clk 0:02:57]}  h5 {[%clk 0:02:49]} 9. h3 {[%clk 0:02:57]}  Ne7 {[%clk 0:02:49]} 10. Nge2 {[%clk 0:02:55]}  Qb6 {[%clk 0:02:50]} 11. Nd1 {[%clk 0:02:53]}  d6 {[%clk 0:02:47]} 12. a5 {[%clk 0:02:52]}  Qc7 {[%clk 0:02:47]} 13. O-O {[%clk 0:02:49]}  Bd7 {[%clk 0:02:47]} 14. f4 {[%clk 0:02:48]}  f5 {[%clk 0:02:38]} 15. Ra3 {[%clk 0:02:41]}  h4 {[%clk 0:02:35]} 16. Nxd4 {[%clk 0:02:27]}  cxd4 {[%clk 0:02:31]} 17. Bf2 {[%clk 0:02:28]}  hxg3 {[%clk 0:02:23]} 18. Bxg3 {[%clk 0:02:29]}  Rc8 {[%clk 0:02:10]} 19. Rf2 {[%clk 0:02:05]}  Kf7 {[%clk 0:02:06]} 20. Kh2 {[%clk 0:01:52]}  Ng8 {[%clk 0:01:46]} 21. exf5 {[%clk 0:01:48]}  gxf5 {[%clk 0:01:43]} 22. Rb3 {[%clk 0:01:48]}  Rb8 {[%clk 0:01:27]} 23. Qb4 {[%clk 0:01:41]}  Nf6 {[%clk 0:01:25]} 24. Kg1 {[%clk 0:01:41]}  Bc6 {[%clk 0:01:13]} 25. Qb6 {[%clk 0:01:33]}  Qxb6 {[%clk 0:01:10]} 26. Rxb6 {[%clk 0:01:34]}  Bxg2 {[%clk 0:00:57]} 27. Kxg2 {[%clk 0:01:35]}  Ke7 {[%clk 0:00:57]} 28. c4 {[%clk 0:01:26]}  Rhc8 {[%clk 0:00:34]} 29. Re2 {[%clk 0:01:13]}  Rc5 {[%clk 0:00:31]} 30. b4 {[%clk 0:00:52]}  Rc6 {[%clk 0:00:31]} 31. Nb2 {[%clk 0:00:41]}  Nd7 {[%clk 0:00:28]} 32. Rxc6 {[%clk 0:00:26]}  bxc6 {[%clk 0:00:29]} 33. Be1 {[%clk 0:00:27]}  Bf6 {[%clk 0:00:24]} 34. Na4 {[%clk 0:00:15]}  Kf7 {[%clk 0:00:18]} 35. Rb2 {[%clk 0:00:11]}  e5 {[%clk 0:00:16]} 36. b5 {[%clk 0:00:08]}  cxb5 {[%clk 0:00:15]} 37. cxb5 {[%clk 0:00:08]}  axb5 {[%clk 0:00:14]} 38. a6 {[%clk 0:00:08]}  Ra8 {[%clk 0:00:11]} 39. Rxb5 {[%clk 0:00:06]}  Rxa6 {[%clk 0:00:11]} 40. fxe5 {[%clk 0:00:06]}  Nxe5 {[%clk 0:00:10]} 41. Rb7+ {[%clk 0:00:05]}  Ke6 {[%clk 0:00:09]} 42. Nb6 {[%clk 0:00:03]}  Nxd3 {[%clk 0:00:08]} 43. Nc4 {[%clk 0:00:02]}  Nxe1+ {[%clk 0:00:08]} 44. Kf1 {[%clk 0:00:02]}  Nd3 {[%clk 0:00:08]} 0-1


[Site "https://www.chess.com"]

[Event "Titled Tuesday Blitz June 28 Late 2022"]
[White "Romanchuk, Viktor"]
[Black "Shapiro, Daniel"]
[WhiteFideId "14109271"]
[BlackFideId "2001780"]
[WhiteElo "2242"]
[BlackElo "2288"]
[Result "1-0"]
[Round "02"]
[TimeControl "180+1"]
[Date "2022.06.29"]
[WhiteClock "0:01:20"]
[BlackClock "0:00:12"]

1. d4 {[%clk 0:03:00]}  Nf6 {[%clk 0:02:59]} 2. c4 {[%clk 0:03:00]}  e6 {[%clk 0:02:59]} 3. Nc3 {[%clk 0:03:00]}  Bb4 {[%clk 0:02:58]} 4. e3 {[%clk 0:03:00]}  d5 {[%clk 0:02:57]} 5. a3 {[%clk 0:03:00]}  Be7 {[%clk 0:02:55]} 6. Nf3 {[%clk 0:02:59]}  b6 {[%clk 0:02:54]} 7. cxd5 {[%clk 0:02:58]}  exd5 {[%clk 0:02:54]} 8. b4 {[%clk 0:02:58]}  c6 {[%clk 0:02:51]} 9. Bd3 {[%clk 0:02:56]}  O-O {[%clk 0:02:39]} 10. O-O {[%clk 0:02:55]}  Bb7 {[%clk 0:02:29]} 11. Qb3 {[%clk 0:02:53]}  Nbd7 {[%clk 0:02:27]} 12. Rd1 {[%clk 0:02:48]}  a5 {[%clk 0:02:22]} 13. bxa5 {[%clk 0:02:42]}  Rxa5 {[%clk 0:02:19]} 14. a4 {[%clk 0:02:38]}  b5 {[%clk 0:02:08]} 15. Bd2 {[%clk 0:02:22]}  b4 {[%clk 0:02:01]} 16. Na2 {[%clk 0:02:19]}  c5 {[%clk 0:02:00]} 17. Bf5 {[%clk 0:02:08]}  c4 {[%clk 0:01:56]} 18. Qb1 {[%clk 0:02:08]}  Rxa4 {[%clk 0:01:37]} 19. Nxb4 {[%clk 0:02:03]}  Rxa1 {[%clk 0:01:37]} 20. Qxa1 {[%clk 0:02:04]}  Qb6 {[%clk 0:01:32]} 21. Rb1 {[%clk 0:01:58]}  Ra8 {[%clk 0:01:31]} 22. Qc3 {[%clk 0:01:58]}  g6 {[%clk 0:01:21]} 23. Nxd5 {[%clk 0:01:56]}  Nxd5 {[%clk 0:00:56]} 24. Rxb6 {[%clk 0:01:47]}  Nxc3 {[%clk 0:00:56]} 25. Rxb7 {[%clk 0:01:48]}  Ra1+ {[%clk 0:00:44]} 26. Ne1 {[%clk 0:01:47]}  gxf5 {[%clk 0:00:26]} 27. Bxc3 {[%clk 0:01:46]}  Rc1 {[%clk 0:00:25]} 28. Rxd7 {[%clk 0:01:40]}  Ba3 {[%clk 0:00:25]} 29. Ba5 {[%clk 0:01:32]}  Bb2 {[%clk 0:00:23]} 30. Rc7 {[%clk 0:01:24]}  c3 {[%clk 0:00:23]} 31. Kf1 {[%clk 0:01:25]}  Kg7 {[%clk 0:00:20]} 32. Ke2 {[%clk 0:01:24]}  Ra1 {[%clk 0:00:17]} 33. Bxc3 {[%clk 0:01:22]}  Ra2 {[%clk 0:00:11]} 34. Bxb2 {[%clk 0:01:21]}  Rxb2+ {[%clk 0:00:12]} 35. Rc2 {[%clk 0:01:20]} 1-0


[Site "https://www.chess.com"]

[Event "Titled Tuesday Blitz June 28 Late 2022"]
[White "Roque Sola, Jose Luis"]
[Black "Chernomordik, Pavel"]
[WhiteFideId "5120390"]
[BlackFideId "2804530"]
[WhiteElo "1983"]
[BlackElo "2220"]
[Result "0-1"]
[Round "02"]
[TimeControl "180+1"]
[Date "2022.06.29"]
[WhiteClock "0:01:36"]
[BlackClock "0:02:41"]

1. e4 {[%clk 0:03:00]}  g6 {[%clk 0:03:00]} 2. d4 {[%clk 0:02:57]}  Bg7 {[%clk 0:03:00]} 3. Nf3 {[%clk 0:02:56]}  d6 {[%clk 0:03:00]} 4. Nc3 {[%clk 0:02:53]}  a6 {[%clk 0:02:59]} 5. Be3 {[%clk 0:02:48]}  b5 {[%clk 0:02:59]} 6. Be2 {[%clk 0:02:35]}  Bb7 {[%clk 0:02:58]} 7. a3 {[%clk 0:02:24]}  Nd7 {[%clk 0:02:56]} 8. O-O {[%clk 0:02:23]}  c5 {[%clk 0:02:55]} 9. dxc5 {[%clk 0:02:20]}  Nxc5 {[%clk 0:02:54]} 10. Bxc5 {[%clk 0:02:12]}  dxc5 {[%clk 0:02:52]} 11. Nd5 {[%clk 0:02:03]}  Bxb2 {[%clk 0:02:49]} 12. Rb1 {[%clk 0:02:00]}  Bg7 {[%clk 0:02:48]} 13. c4 {[%clk 0:01:51]}  e6 {[%clk 0:02:45]} 14. Ne3 {[%clk 0:01:36]}  Bxe4 {[%clk 0:02:41]} 0-1


[Site "https://www.chess.com"]

[Event "Titled Tuesday Blitz June 28 Late 2022"]
[White "Rosenberg, Evan S"]
[Black "Meunier-Pion, Jean"]
[WhiteFideId "2019299"]
[BlackFideId "20685327"]
[WhiteElo "2196"]
[BlackElo "2124"]
[Result "0-1"]
[Round "02"]
[TimeControl "180+1"]
[Date "2022.06.29"]
[WhiteClock "0:00:38"]
[BlackClock "0:01:41"]

1. e4 {[%clk 0:03:00]}  c5 {[%clk 0:02:59]} 2. Nc3 {[%clk 0:03:01]}  d6 {[%clk 0:02:59]} 3. f4 {[%clk 0:03:01]}  g6 {[%clk 0:02:58]} 4. Nf3 {[%clk 0:03:01]}  Bg7 {[%clk 0:02:58]} 5. a4 {[%clk 0:03:01]}  Nc6 {[%clk 0:02:57]} 6. Bb5 {[%clk 0:03:01]}  Bd7 {[%clk 0:02:57]} 7. d3 {[%clk 0:03:01]}  e6 {[%clk 0:02:57]} 8. O-O {[%clk 0:03:01]}  Nge7 {[%clk 0:02:57]} 9. f5 {[%clk 0:02:36]}  gxf5 {[%clk 0:02:55]} 10. Bg5 {[%clk 0:02:23]}  f6 {[%clk 0:02:52]} 11. Bf4 {[%clk 0:02:13]}  e5 {[%clk 0:02:49]} 12. Be3 {[%clk 0:01:40]}  f4 {[%clk 0:02:48]} 13. Bf2 {[%clk 0:01:38]}  Be6 {[%clk 0:02:34]} 14. Nh4 {[%clk 0:01:27]}  h5 {[%clk 0:02:21]} 15. Nd5 {[%clk 0:01:14]}  Nxd5 {[%clk 0:02:18]} 16. exd5 {[%clk 0:01:15]}  Bxd5 {[%clk 0:02:19]} 17. Nf5 {[%clk 0:01:15]}  Qd7 {[%clk 0:02:14]} 18. g4 {[%clk 0:00:57]}  Bf8 {[%clk 0:01:41]} 19. h3 {[%clk 0:00:43]}  hxg4 {[%clk 0:01:41]} 20. hxg4 {[%clk 0:00:38]}  Rh1# {[%clk 0:01:41]} 0-1


[Site "https://www.chess.com"]

[Event "Titled Tuesday Blitz June 28 Late 2022"]
[White "Sailer, Mike"]
[Black "Nilsen, Tobias Lang"]
[WhiteFideId "2012901"]
[BlackFideId "1521624"]
[WhiteElo "2109"]
[BlackElo "2014"]
[Result "1-0"]
[Round "02"]
[TimeControl "180+1"]
[Date "2022.06.29"]
[WhiteClock "0:00:23"]
[BlackClock "0:01:11"]

1. d4 {[%clk 0:03:00]}  Nf6 {[%clk 0:02:55]} 2. Nf3 {[%clk 0:03:00]}  e6 {[%clk 0:02:55]} 3. Bf4 {[%clk 0:03:01]}  b6 {[%clk 0:02:53]} 4. e3 {[%clk 0:03:01]}  Bb7 {[%clk 0:02:54]} 5. Be2 {[%clk 0:03:02]}  d6 {[%clk 0:02:53]} 6. O-O {[%clk 0:03:02]}  Nbd7 {[%clk 0:02:53]} 7. c4 {[%clk 0:03:02]}  Be7 {[%clk 0:02:54]} 8. Nc3 {[%clk 0:03:03]}  O-O {[%clk 0:02:54]} 9. a3 {[%clk 0:03:02]}  Ne4 {[%clk 0:02:54]} 10. Nxe4 {[%clk 0:03:02]}  Bxe4 {[%clk 0:02:55]} 11. Rc1 {[%clk 0:03:03]}  f5 {[%clk 0:02:55]} 12. b4 {[%clk 0:03:02]}  g5 {[%clk 0:02:53]} 13. Bg3 {[%clk 0:03:01]}  f4 {[%clk 0:02:53]} 14. exf4 {[%clk 0:02:49]}  gxf4 {[%clk 0:02:54]} 15. Nd2 {[%clk 0:02:41]}  Bb7 {[%clk 0:02:45]} 16. Bg4 {[%clk 0:02:30]}  fxg3 {[%clk 0:02:41]} 17. Bxe6+ {[%clk 0:02:30]}  Kh8 {[%clk 0:02:41]} 18. fxg3 {[%clk 0:02:21]}  Nf6 {[%clk 0:02:41]} 19. d5 {[%clk 0:02:16]}  Bc8 {[%clk 0:02:39]} 20. Re1 {[%clk 0:02:10]}  Bxe6 {[%clk 0:02:38]} 21. Rxe6 {[%clk 0:02:09]}  Qd7 {[%clk 0:02:35]} 22. Qe2 {[%clk 0:02:02]}  Rae8 {[%clk 0:02:27]} 23. Re1 {[%clk 0:02:02]}  Bd8 {[%clk 0:02:17]} 24. Nf3 {[%clk 0:02:00]}  Rxe6 {[%clk 0:02:14]} 25. dxe6 {[%clk 0:01:59]}  Qe7 {[%clk 0:02:14]} 26. Nd4 {[%clk 0:01:57]}  Re8 {[%clk 0:02:03]} 27. Nc6 {[%clk 0:01:47]}  Qg7 {[%clk 0:02:02]} 28. e7 {[%clk 0:01:37]}  Bxe7 {[%clk 0:02:01]} 29. Nxe7 {[%clk 0:01:36]}  Ng8 {[%clk 0:02:01]} 30. Ng6+ {[%clk 0:01:27]}  hxg6 {[%clk 0:01:57]} 31. Qxe8 {[%clk 0:01:28]}  Qd4+ {[%clk 0:01:57]} 32. Kh1 {[%clk 0:01:18]}  Qf2 {[%clk 0:01:44]} 33. Qe3 {[%clk 0:01:00]}  Qf5 {[%clk 0:01:42]} 34. h3 {[%clk 0:00:53]}  Nf6 {[%clk 0:01:39]} 35. Qh6+ {[%clk 0:00:47]}  Kg8 {[%clk 0:01:37]} 36. Re7 {[%clk 0:00:46]}  Nh5 {[%clk 0:01:30]} 37. Qh7+ {[%clk 0:00:37]}  Kf8 {[%clk 0:01:30]} 38. Rxc7 {[%clk 0:00:31]}  Nxg3+ {[%clk 0:01:28]} 39. Kh2 {[%clk 0:00:25]}  Nf1+ {[%clk 0:01:20]} 40. Kg1 {[%clk 0:00:25]}  Ng3 {[%clk 0:01:11]} 41. Qh8# {[%clk 0:00:23]} 1-0


[Site "https://www.chess.com"]

[Event "Titled Tuesday Blitz June 28 Late 2022"]
[White "Salem, A.R. Saleh"]
[Black "Sanchez Alarcon, Juan"]
[WhiteFideId "9301348"]
[BlackFideId "3401332"]
[WhiteElo "2679"]
[BlackElo "2164"]
[Result "1-0"]
[Round "02"]
[TimeControl "180+1"]
[Date "2022.06.29"]
[WhiteClock "0:02:22"]
[BlackClock "0:02:24"]

1. d4 {[%clk 0:03:00]}  Nf6 {[%clk 0:02:58]} 2. c4 {[%clk 0:03:01]}  g6 {[%clk 0:02:54]} 3. Nc3 {[%clk 0:03:01]}  Bg7 {[%clk 0:02:54]} 4. e4 {[%clk 0:03:01]}  d6 {[%clk 0:02:55]} 5. h3 {[%clk 0:03:02]}  O-O {[%clk 0:02:54]} 6. Be3 {[%clk 0:03:03]}  e5 {[%clk 0:02:53]} 7. d5 {[%clk 0:03:03]}  Nbd7 {[%clk 0:02:51]} 8. g4 {[%clk 0:03:02]}  a5 {[%clk 0:02:51]} 9. Nge2 {[%clk 0:03:02]}  Nc5 {[%clk 0:02:50]} 10. Ng3 {[%clk 0:03:02]}  b6 {[%clk 0:02:50]} 11. Be2 {[%clk 0:03:02]}  Nfd7 {[%clk 0:02:49]} 12. h4 {[%clk 0:03:00]}  Nb8 {[%clk 0:02:41]} 13. Qd2 {[%clk 0:02:57]}  f5 {[%clk 0:02:39]} 14. gxf5 {[%clk 0:02:55]}  gxf5 {[%clk 0:02:39]} 15. Bg5 {[%clk 0:02:50]}  Bf6 {[%clk 0:02:31]} 16. Bh6 {[%clk 0:02:35]}  Bg7 {[%clk 0:02:30]} 17. Rg1 {[%clk 0:02:24]}  Rf7 {[%clk 0:02:24]} 18. Nh5 {[%clk 0:02:22]} 1-0


[Site "https://www.chess.com"]

[Event "Titled Tuesday Blitz June 28 Late 2022"]
[White "Samsonkin, Artiom"]
[Black "Daeschler, Florian"]
[WhiteFideId "13503111"]
[BlackFideId "20678193"]
[WhiteElo "2513"]
[BlackElo "2221"]
[Result "1-0"]
[Round "02"]
[TimeControl "180+1"]
[Date "2022.06.28"]
[WhiteClock "0:00:08"]
[BlackClock "0:00:39"]

1. d4 {[%clk 0:02:59]}  Nf6 {[%clk 0:02:53]} 2. Bf4 {[%clk 0:02:55]}  d5 {[%clk 0:02:47]} 3. e3 {[%clk 0:02:54]}  e6 {[%clk 0:02:46]} 4. Nf3 {[%clk 0:02:53]}  Bd6 {[%clk 0:02:45]} 5. Bg3 {[%clk 0:02:54]}  O-O {[%clk 0:02:43]} 6. Nbd2 {[%clk 0:02:52]}  c5 {[%clk 0:02:42]} 7. c3 {[%clk 0:02:52]}  Qc7 {[%clk 0:02:40]} 8. Bxd6 {[%clk 0:02:44]}  Qxd6 {[%clk 0:02:40]} 9. Ne5 {[%clk 0:02:44]}  b5 {[%clk 0:02:27]} 10. Bd3 {[%clk 0:02:32]}  b4 {[%clk 0:02:22]} 11. f4 {[%clk 0:02:26]}  Ba6 {[%clk 0:02:21]} 12. Bxa6 {[%clk 0:01:52]}  Nxa6 {[%clk 0:02:18]} 13. O-O {[%clk 0:01:53]}  bxc3 {[%clk 0:02:17]} 14. bxc3 {[%clk 0:01:52]}  Rab8 {[%clk 0:02:08]} 15. Qa4 {[%clk 0:01:26]}  Rb2 {[%clk 0:02:07]} 16. Ndc4 {[%clk 0:01:10]}  dxc4 {[%clk 0:01:53]} 17. Nxc4 {[%clk 0:01:11]}  Rxg2+ {[%clk 0:01:51]} 18. Kxg2 {[%clk 0:01:12]}  Qd5+ {[%clk 0:01:48]} 19. Kg1 {[%clk 0:00:45]}  Nb4 {[%clk 0:01:48]} 20. Ne5 {[%clk 0:00:29]}  Qe4 {[%clk 0:01:27]} 21. cxb4 {[%clk 0:00:26]}  Qxe3+ {[%clk 0:01:27]} 22. Kh1 {[%clk 0:00:22]}  Ne4 {[%clk 0:01:18]} 23. Qc2 {[%clk 0:00:18]}  Qxd4 {[%clk 0:01:09]} 24. bxc5 {[%clk 0:00:14]}  Rc8 {[%clk 0:00:59]} 25. Rad1 {[%clk 0:00:14]}  Qe3 {[%clk 0:00:57]} 26. Rde1 {[%clk 0:00:13]}  Nf2+ {[%clk 0:00:43]} 27. Qxf2 {[%clk 0:00:08]}  Qa3 {[%clk 0:00:43]} 28. c6 {[%clk 0:00:08]}  g6 {[%clk 0:00:42]} 29. Re3 {[%clk 0:00:08]}  Qc5 {[%clk 0:00:41]} 30. Ng4 {[%clk 0:00:07]}  h5 {[%clk 0:00:41]} 31. Nf6+ {[%clk 0:00:07]}  Kg7 {[%clk 0:00:40]} 32. Ne4 {[%clk 0:00:08]}  Qf5 {[%clk 0:00:40]} 33. Qb2+ {[%clk 0:00:07]}  Kh6 {[%clk 0:00:39]} 34. Qe5 {[%clk 0:00:07]}  Qg4 {[%clk 0:00:38]} 35. Qg5+ {[%clk 0:00:07]}  Qxg5 {[%clk 0:00:38]} 36. fxg5+ {[%clk 0:00:08]}  Kg7 {[%clk 0:00:39]} 37. Rc1 {[%clk 0:00:08]}  Rd8 {[%clk 0:00:39]} 38. c7 {[%clk 0:00:08]}  Rb8 {[%clk 0:00:39]} 39. cxb8=Q {[%clk 0:00:08]} 1-0


[Site "https://www.chess.com"]